bitfinex-derivatives/quotes_BTCF0:USTF0_20210705
["timestamp","ask_amount","ask_price","bid_price","bid_amount"]
[1625527213844,3.01908258,33985.0,33984.0,4.80437544]
[1625527213944,3.01908258,33985.0,33984.0,4.86337544]
[1625527214197,3.01908258,33985.0,33984.0,5.3852123]
[1625527214395,3.00320918,33985.0,33984.0,5.3262123]
[1625527214495,3.01908074,33985.0,33984.0,5.3262123]
[1625527214698,3.01908074,33985.0,33984.0,5.15226668]
[1625527214796,2.96208074,33985.0,33984.0,5.39284212]
[1625527214997,2.96208074,33985.0,33984.0,5.04495088]
[1625527215597,2.94620918,33985.0,33984.0,5.04495088]
[1625527215848,2.96208047,33985.0,33984.0,5.04495088]
[1625527216149,3.6404467,33985.0,33984.0,5.74072589]
[1625527216250,3.6404467,33985.0,33984.0,6.07547589]
[1625527217704,3.65631814,33985.0,33984.0,5.72759104]
[1625527218004,3.65631814,33985.0,33984.0,5.37970088]
[1625527218805,4.86740687,33985.0,33984.0,5.37970088]
[1625527219306,4.85153543,33985.0,33984.0,5.37970088]
[1625527219908,4.85153543,33985.0,33984.0,0.87490088]
[1625527220109,4.85153543,33985.0,33984.0,0.54015088]
[1625527221317,4.85153543,33985.0,33984.0,1.23588218]
[1625527221771,4.93993543,33985.0,33984.0,1.32418218]
[1625527221870,3.29250742,33985.0,33984.0,1.23588218]
[1625527222622,3.81244152,33985.0,33984.0,1.7576468]
[1625527225626,3.81244152,33985.0,33984.0,1.76113394]
[1625527226127,3.81244152,33985.0,33984.0,1.82013394]
[1625527226330,2.42526035,33985.0,33984.0,3.03746078]
[1625527226429,1.22196035,33985.0,33984.0,3.03746078]
[1625527227081,0.5199341,33985.0,33984.0,4.51559919]
[1625527227184,0.6079341,33985.0,33984.0,4.51559919]
[1625527227281,0.5199341,33985.0,33984.0,4.42859919]
[1625527227681,0.5167341,33985.0,33984.0,4.42859919]
[1625527227782,0.5167341,33985.0,33984.0,4.43945066]
[1625527227882,0.60730233,33986.0,33984.0,6.00401577]
[1625527228233,0.60730233,33986.0,33985.0,0.00348651]
[1625527228335,0.08685654,33986.0,33985.0,3.07675924]
[1625527228785,0.08685654,33986.0,33985.0,4.11974213]
[1625527228886,0.08685654,33986.0,33985.0,4.36031757]
[1625527229136,0.26035999,33987.0,33985.0,4.36031757]
[1625527229437,0.60704284,33987.0,33986.0,2.43254139]
[1625527229537,0.60704284,33987.0,33986.0,2.85135139]
[1625527229637,0.60704284,33987.0,33986.0,2.8548379]
[1625527229939,0.10644284,33987.0,33986.0,2.8548379]
[1625527230339,1.03978847,33990.0,33986.0,4.41857615]
[1625527230439,1.03983822,33991.0,33986.0,4.41857615]
[1625527230690,1.03983822,33991.0,33990.0,3.9826]
[1625527230790,1.03983822,33991.0,33990.0,4.1889]
[1625527230891,1.03983822,33991.0,33990.0,4.67005088]
[1625527230992,0.98083822,33991.0,33990.0,4.61453702]
[1625527231090,0.98083822,33991.0,33990.0,7.10588983]
[1625527231189,0.55413822,33991.0,33990.0,7.10588983]
[1625527231543,1.78994818,34003.0,33990.0,7.10588983]
[1625527231544,1.38635438,33999.0,33990.0,7.10588983]
[1625527231793,1.38635438,33999.0,33991.0,0.00348601]
[1625527231896,1.38635438,33999.0,33991.0,0.12148601]
[1625527231997,1.38635438,33999.0,33993.0,1.38876117]
[1625527232095,1.38635438,33999.0,33993.0,1.80936117]
[1625527232895,1.38635438,33999.0,33998.0,0.24057544]
[1625527232995,1.38635438,33999.0,33998.0,0.78072632]
[1625527233107,1.38694427,34000.0,33998.0,0.83972632]
[1625527233397,1.38694427,34000.0,33998.0,0.78072632]
[1625527233497,1.38694427,34000.0,33998.0,0.72172632]
[1625527234899,1.38694427,34000.0,33998.0,0.83972632]
[1625527235949,1.56100379,34003.0,33999.0,5.1357]
[1625527236150,1.56100379,34003.0,33999.0,5.2537]
[1625527236251,1.36900379,34003.0,33999.0,5.2537]
[1625527236655,1.3862978,34007.0,33999.0,5.2537]
[1625527236956,1.38621052,34010.0,34006.0,0.72172632]
[1625527237055,1.38621052,34010.0,34006.0,0.78072632]
[1625527237155,1.38621052,34010.0,34006.0,1.06326632]
[1625527237354,0.057,34016.0,34006.0,1.06326632]
[1625527237355,1.38620978,34011.0,34006.0,1.06326632]
[1625527237755,1.38620978,34011.0,34010.0,5.219]
[1625527237856,1.38620978,34011.0,34010.0,0.059]
[1625527238055,0.057,34016.0,34010.0,0.059]
[1625527238056,1.38471092,34013.0,34010.0,0.059]
[1625527238156,0.057,34012.0,34010.0,0.059]
[1625527238359,0.057,34012.0,34006.0,0.94526632]
[1625527238458,1.38456579,34012.0,34006.0,1.00426632]
[1625527238557,1.38456579,34012.0,34006.0,1.06326632]
[1625527238760,1.38455708,34013.0,34006.0,1.06326632]
[1625527238960,1.38455708,34013.0,34012.0,0.48115088]
[1625527239158,1.38455708,34013.0,34012.0,0.54015088]
[1625527240310,1.38328527,34015.0,34012.0,0.54015088]
[1625527240860,1.38328527,34015.0,34012.0,0.59915088]
[1625527240961,0.057,34014.0,34012.0,0.59915088]
[1625527241063,0.057,34014.0,34012.0,0.54015088]
[1625527241862,1.44013532,34014.0,34012.0,0.54015088]
[1625527243416,1.49913532,34014.0,34012.0,0.48115088]
[1625527244373,0.116,34014.0,34012.0,0.48115088]
[1625527245026,0.116,34014.0,34012.0,0.72172632]
[1625527245124,0.057,34014.0,34012.0,0.78072632]
[1625527246579,1.26508612,34014.0,34012.0,0.78072632]
[1625527247229,1.2080808,34013.0,34012.0,0.78072632]
[1625527247982,1.26467583,34014.0,34012.0,0.78072632]
[1625527248085,1.26467583,34014.0,34012.0,1.01554632]
[1625527248539,1.26467583,34014.0,34012.0,0.95654632]
[1625527248833,0.0894,34013.0,34012.0,0.95654632]
[1625527248940,0.057,34014.0,34012.0,0.95654632]
[1625527249485,0.057,34014.0,34012.0,0.72172632]
[1625527250686,0.057,34014.0,34012.0,0.95247632]
[1625527251840,0.057,34014.0,34012.0,0.72172632]
[1625527253191,0.01576835,34013.0,34012.0,0.72172632]
[1625527253391,0.07276835,34013.0,34012.0,0.72172632]
[1625527258906,0.01576835,34013.0,34012.0,0.72172632]
[1625527259208,0.01576835,34013.0,34012.0,0.78072632]
[1625527259357,0.01576802,34014.0,34012.0,0.78072632]
[1625527259459,0.01576802,34014.0,34012.0,0.83972632]
[1625527259559,0.01576802,34014.0,34012.0,0.78072632]
[1625527260011,0.01576802,34014.0,34012.0,0.83972632]
[1625527260512,0.01576802,34014.0,34012.0,0.78072632]
[1625527261565,1.03495208,34013.0,34012.0,0.78072632]
[1625527261664,1.03495208,34013.0,34012.0,0.83972632]
[1625527261964,1.05077763,34013.0,34012.0,0.83972632]
[1625527262165,1.05077763,34013.0,34012.0,0.78072632]
[1625527263016,0.01582555,34013.0,34012.0,0.78072632]
[1625527263218,0.01582555,34013.0,34012.0,0.83972632]
[1625527263316,0.01582555,34013.0,34012.0,5.64912632]
[1625527265971,0.01582555,34013.0,34012.0,5.65261136]
[1625527266170,0.01582359,34017.0,34012.0,5.65261136]
[1625527266423,0.01582359,34017.0,34012.0,5.64912632]
[1625527267274,0.01582359,34017.0,34012.0,5.73762632]
[1625527267375,0.01582359,34017.0,34016.0,0.24057544]
[1625527267475,0.01582207,34018.0,34016.0,0.63638544]
[1625527267575,0.01582207,34018.0,34016.0,0.69538544]
[1625527268076,1.03452502,34019.0,34016.0,0.69538544]
[1625527268277,1.0344388,34026.0,34016.0,0.69538544]
[1625527268479,1.0344388,34026.0,34016.0,0.81408544]
[1625527268579,0.01577017,34025.0,34017.0,0.00348416]
[1625527268783,0.01577017,34025.0,34017.0,0.12148416]
[1625527268880,0.01577017,34025.0,34024.0,4.9305]
[1625527268983,0.01577017,34025.0,34024.0,5.23955]
[1625527269081,0.01577006,34026.0,34024.0,5.29855]
[1625527269334,0.01576998,34025.0,34024.0,5.53912544]
[1625527269634,0.01579616,34026.0,34024.0,5.53912544]
[1625527269936,0.01579627,34027.0,34024.0,5.53912544]
[1625527270385,0.015796,34028.0,34024.0,5.53912544]
[1625527270637,0.01579616,34026.0,34024.0,5.53912544]
[1625527270938,0.01579621,34028.0,34024.0,5.53912544]
[1625527271336,0.01579621,34028.0,34027.0,0.72172632]
[1625527271536,0.01579621,34028.0,34027.0,0.78072632]
[1625527273543,0.01579621,34028.0,34027.0,0.72172632]
[1625527273643,0.01579621,34028.0,34027.0,0.78072632]
[1625527273994,1.04996157,34028.0,34027.0,0.78072632]
[1625527274796,0.07279621,34028.0,34027.0,0.72172632]
[1625527275195,2.31351227,34028.0,34027.0,0.72172632]
[1625527275349,6.16681227,34028.0,34027.0,0.72172632]
[1625527275546,7.54574017,34028.0,34027.0,0.72172632]
[1625527276598,3.69244017,34028.0,34027.0,0.72172632]
[1625527276699,3.98400017,34028.0,34027.0,0.72172632]
[1625527278400,4.04300017,34028.0,34027.0,0.48115088]
[1625527278502,4.10200017,34028.0,34027.0,0.48115088]
[1625527278901,4.10200017,34028.0,34027.0,0.24057544]
[1625527279000,4.10200017,34028.0,34012.0,4.8684]
[1625527279102,4.10200017,34028.0,34012.0,4.9274]
[1625527279252,0.01579755,34027.0,34012.0,4.9274]
[1625527279351,1.03284686,34021.0,34012.0,4.9274]
[1625527279451,0.057,34020.0,34016.0,0.24057544]
[1625527279550,0.057,34020.0,34016.0,0.29957544]
[1625527281207,1.09044592,34020.0,34016.0,0.29957544]
[1625527281405,1.09044592,34020.0,34019.0,0.24057544]
[1625527281505,1.09044592,34020.0,34019.0,5.03367544]
[1625527282257,0.057,34020.0,34019.0,5.03367544]
[1625527282506,0.057,34020.0,34019.0,5.09267544]
[1625527283108,0.057,34020.0,34019.0,5.03367544]
[1625527283660,1.09175621,34020.0,34019.0,5.03367544]
[1625527283814,1.09175621,34020.0,34019.0,5.09267544]
[1625527284013,1.03475621,34020.0,34019.0,5.33383544]
[1625527284711,1.03497176,34022.0,34019.0,5.33383544]
[1625527285112,1.03598924,34021.0,34019.0,5.33383544]
[1625527285412,1.03598924,34021.0,34020.0,0.24057544]
[1625527285515,1.03598924,34021.0,34020.0,0.29957544]
[1625527285616,1.03598924,34021.0,34020.0,0.44637544]
[1625527285815,1.03619691,34022.0,34020.0,0.44637544]
[1625527286216,1.03657537,34023.0,34020.0,0.44637544]
[1625527286667,0.01571948,34022.0,34020.0,0.44637544]
[1625527287518,0.70755054,34023.0,34021.0,0.24057544]
[1625527287617,0.70755054,34023.0,34021.0,0.35857544]
[1625527287816,0.01571887,34022.0,34021.0,0.35857544]
[1625527289172,0.01571877,34023.0,34021.0,0.35857544]
[1625527289271,0.70716909,34023.0,34021.0,0.35857544]
[1625527289673,0.01571864,34022.0,34021.0,0.35857544]
[1625527291278,0.70602834,34022.0,34021.0,0.44637544]
[1625527291580,0.01571864,34022.0,34021.0,0.44637544]
[1625527293132,0.01571864,34022.0,34021.0,1.13889686]
[1625527293783,0.70560048,34022.0,34021.0,0.44637544]
[1625527294587,0.68988184,34022.0,34021.0,0.44637544]
[1625527294837,0.70560082,34022.0,34021.0,0.44637544]
[1625527297195,0.70560082,34022.0,34021.0,0.44985951]
[1625527298700,0.70560082,34022.0,34021.0,0.36205951]
[1625527299804,0.01571898,34022.0,34021.0,0.36205951]
[1625527301161,0.70549046,34022.0,34021.0,0.36205951]
[1625527305517,0.70549046,34022.0,34021.0,0.62142951]
[1625527305817,0.01571898,34022.0,34021.0,2.35261949]
[1625527306217,1.03452909,34025.0,34021.0,2.35261949]
[1625527306218,0.01571656,34023.0,34021.0,3.56442331]
[1625527306469,0.01571612,34022.0,34021.0,3.56442331]
[1625527306670,0.01571612,34022.0,34021.0,1.83323333]
[1625527306779,0.01571607,34024.0,34021.0,1.83323333]
[1625527306869,0.01571607,34024.0,34021.0,1.86473333]
[1625527307074,0.01571598,34025.0,34022.0,0.00348363]
[1625527307173,0.01571598,34025.0,34023.0,1.73106725]
[1625527307275,0.69014568,34026.0,34024.0,0.0893]
[1625527307370,0.69014568,34026.0,34024.0,0.2073]
[1625527307571,0.69014568,34026.0,34025.0,0.48115088]
[1625527307676,1.20762558,34029.0,34025.0,0.48115088]
[1625527307677,0.68984729,34028.0,34025.0,0.59915088]
[1625527307885,0.01571443,34026.0,34025.0,0.60263412]
[1625527308071,0.01571413,34027.0,34026.0,0.69240087]
[1625527308171,0.01571413,34027.0,34026.0,0.75140087]
[1625527308271,0.01571413,34027.0,34026.0,0.81040087]
[1625527308372,0.01571413,34027.0,34026.0,0.81388402]
[1625527308572,0.01571413,34027.0,34026.0,3.06406752]
[1625527308672,0.01571413,34027.0,34026.0,6.79566752]
[1625527308772,0.68366586,34030.0,34026.0,6.79566752]
[1625527308973,0.61566586,34030.0,34026.0,6.79566752]
[1625527309074,0.58966586,34030.0,34026.0,6.79566752]
[1625527309175,0.01566288,34029.0,34027.0,0.00348297]
[1625527309274,0.67775959,34031.0,34027.0,0.12148297]
[1625527309376,0.67775959,34031.0,34027.0,0.118]
[1625527309582,0.67775959,34031.0,34030.0,0.48115088]
[1625527309680,0.67775959,34031.0,34030.0,0.89376088]
[1625527309977,1.72741376,34031.0,34030.0,0.89376088]
[1625527310531,1.72741376,34031.0,34030.0,0.83476088]
[1625527310630,1.72741376,34031.0,34030.0,0.89376088]
[1625527312388,1.72741376,34031.0,34030.0,0.59915088]
[1625527312938,1.72741376,34031.0,34030.0,0.54015088]
[1625527313036,1.78441376,34031.0,34030.0,0.54015088]
[1625527313386,1.78441376,34031.0,34030.0,0.48115088]
[1625527313586,2.98842787,34031.0,34030.0,0.48115088]
[1625527313686,3.04742787,34031.0,34030.0,0.48115088]
[1625527313938,4.48147547,34031.0,34030.0,0.48115088]
[1625527314188,6.02859461,34031.0,34030.0,0.48115088]
[1625527314788,6.26135461,34031.0,34030.0,0.48115088]
[1625527317895,6.29619353,34031.0,34030.0,0.48115088]
[1625527317996,6.81138809,34031.0,34030.0,0.48115088]
[1625527318398,6.77654917,34031.0,34030.0,0.48115088]
[1625527318700,6.75238765,34031.0,34030.0,0.48115088]
[1625527319000,6.71754917,34031.0,34030.0,0.48115088]
[1625527320256,6.7523877,34031.0,34030.0,0.48115088]
[1625527320652,6.8113877,34031.0,34030.0,0.48115088]
[1625527322307,6.79570661,34031.0,34030.0,0.48115088]
[1625527322409,6.81138274,34031.0,34030.0,5.53665088]
[1625527322558,6.79570661,34031.0,34030.0,5.53665088]
[1625527322661,6.81138269,34031.0,34030.0,5.53665088]
[1625527324664,6.79570661,34031.0,34030.0,5.53665088]
[1625527324766,6.69338249,34031.0,34030.0,5.53665088]
[1625527324864,6.46062249,34031.0,34030.0,5.53665088]
[1625527324966,6.42578396,34031.0,34030.0,5.53665088]
[1625527328173,6.42578396,34031.0,34030.0,5.59565088]
[1625527329224,6.42578396,34031.0,34030.0,5.83409088]
[1625527329824,6.36878396,34031.0,34030.0,5.89309088]
[1625527329924,4.87866482,34031.0,34030.0,5.89309088]
[1625527330024,4.87866482,34031.0,34030.0,6.4140256]
[1625527331028,4.87866482,34031.0,34030.0,6.3550256]
[1625527331126,4.87866482,34031.0,34030.0,6.2960256]
[1625527331628,6.43110591,34031.0,34030.0,5.77509088]
[1625527331728,6.43110591,34031.0,34030.0,5.53665088]
[1625527331828,6.43110591,34031.0,34030.0,0.48115088]
[1625527331929,6.49010591,34031.0,34030.0,0.48115088]
[1625527335339,6.52494276,34031.0,34030.0,0.48115088]
[1625527335840,6.49010591,34031.0,34030.0,0.48115088]
[1625527336343,6.52494275,34031.0,34030.0,0.48115088]
[1625527336792,6.52494275,34031.0,34025.0,0.52092173]
[1625527337144,0.01559953,34030.0,34025.0,0.52092173]
[1625527337243,0.07459953,34030.0,34025.0,0.52092173]
[1625527337343,4.1355074,34026.0,34025.0,0.52092173]
[1625527337444,4.1925074,34026.0,34025.0,0.52092173]
[1625527337745,4.20810698,34026.0,34025.0,1.00207261]
[1625527339245,4.20810698,34026.0,34025.0,1.00555631]
[1625527339798,4.20810698,34026.0,34025.0,1.00207261]
[1625527340048,4.20810698,34026.0,34025.0,1.00555631]
[1625527340299,5.75887218,34026.0,34025.0,0.48115088]
[1625527340698,5.75887218,34026.0,34025.0,1.00235969]
[1625527340847,5.75887218,34026.0,34025.0,1.00584341]
[1625527342151,4.20810698,34026.0,34025.0,1.00584341]
[1625527342501,5.76150736,34026.0,34025.0,1.00584341]
[1625527350269,5.76150736,34026.0,34025.0,1.15264341]
[1625527350370,5.76150736,34026.0,34025.0,1.06484341]
[1625527350471,5.70450736,34026.0,34025.0,1.12384341]
[1625527350673,4.15110698,34026.0,34025.0,2.16678251]
[1625527351122,4.15110698,34026.0,34025.0,3.38343677]
[1625527351322,4.15110698,34026.0,34025.0,3.47173677]
[1625527351673,4.15110698,34026.0,34025.0,4.86216057]
[1625527351874,4.13780698,34026.0,34025.0,4.86216057]
[1625527352129,4.13780698,34026.0,34025.0,4.80316057]
[1625527352227,4.07880698,34026.0,34025.0,4.80316057]
[1625527352331,0.53262415,34026.0,34025.0,6.43699432]
[1625527352429,0.48982415,34026.0,34025.0,6.43699432]
[1625527352693,0.47972415,34026.0,34025.0,6.43699432]
[1625527352781,0.36251704,34026.0,34025.0,6.43699432]
[1625527352881,0.25081704,34026.0,34025.0,6.43699432]
[1625527352981,0.23821704,34026.0,34025.0,6.43699432]
[1625527353080,1.04040564,34029.0,34025.0,6.43699432]
[1625527353281,1.04040564,34029.0,34025.0,6.42616791]
[1625527353432,1.03918085,34030.0,34028.0,1.38953728]
[1625527353530,1.03918085,34030.0,34029.0,0.0889]
[1625527353633,1.03918085,34030.0,34029.0,0.1479]
[1625527353730,1.03918085,34030.0,34029.0,0.21038259]
[1625527353836,1.02318085,34030.0,34029.0,0.45095803]
[1625527354032,1.03866497,34030.0,34029.0,2.88261894]
[1625527354435,0.01548412,34030.0,34029.0,2.88261894]
[1625527354784,0.01548407,34033.0,34029.0,2.88261894]
[1625527355085,0.01548397,34030.0,34029.0,2.88261894]
[1625527355186,0.01548397,34030.0,34029.0,0.45095803]
[1625527355336,0.01548397,34033.0,34029.0,0.45095803]
[1625527355486,0.01548397,34033.0,34032.0,3.46835288]
[1625527355588,1.38540792,34034.0,34032.0,3.90812288]
[1625527355689,1.38293279,34035.0,34032.0,3.90812288]
[1625527355887,1.38293279,34035.0,34034.0,0.72172632]
[1625527355986,1.38293279,34035.0,34034.0,0.78072632]
[1625527356386,1.39841753,34035.0,34034.0,0.78072632]
[1625527359251,1.45741753,34035.0,34034.0,0.78072632]
[1625527359701,1.39841753,34035.0,34034.0,0.78072632]
[1625527359901,1.51441753,34035.0,34034.0,0.78072632]
[1625527360003,1.45741753,34035.0,34034.0,0.78072632]
[1625527360503,1.39841753,34035.0,34034.0,0.78072632]
[1625527363006,1.45741753,34035.0,34034.0,0.78072632]
[1625527364808,1.51441753,34035.0,34034.0,0.78072632]
[1625527365707,1.45541753,34035.0,34034.0,0.78072632]
[1625527365809,1.39841753,34035.0,34034.0,0.78072632]
[1625527366059,1.39841753,34035.0,34034.0,1.04013632]
[1625527366858,0.01548474,34035.0,34034.0,1.04013632]
[1625527367558,0.01550193,34036.0,34034.0,1.04013632]
[1625527368061,0.01550178,34037.0,34034.0,1.04013632]
[1625527368813,0.01550178,34038.0,34034.0,1.04013632]
[1625527369412,0.01550178,34038.0,34036.0,0.69359069]
[1625527369663,0.69030105,34037.0,34036.0,0.69359069]
[1625527370363,0.70580238,34037.0,34036.0,0.69359069]
[1625527370663,0.69030105,34037.0,34036.0,0.69359069]
[1625527375176,0.70600576,34037.0,34036.0,0.69359069]
[1625527375278,1.03198576,34037.0,34036.0,0.69359069]
[1625527375427,1.03198576,34037.0,34035.0,0.69293382]
[1625527375628,1.09098576,34037.0,34035.0,0.69293382]
[1625527375783,0.6891489,34036.0,34035.0,0.69293382]
[1625527375879,0.7638537,34036.0,34035.0,0.69293382]
[1625527376382,0.7638537,34036.0,34034.0,1.41467935]
[1625527376581,0.7048537,34036.0,34034.0,1.41467935]
[1625527376683,0.0157049,34035.0,34034.0,1.41467935]
[1625527376883,0.70469955,34035.0,34034.0,1.41467935]
[1625527377684,0.70469955,34035.0,34034.0,1.50257935]
[1625527378035,0.76369955,34035.0,34034.0,1.50257935]
[1625527378235,0.76369955,34035.0,34034.0,1.41467935]
[1625527379388,0.74029955,34035.0,34034.0,1.47367935]
[1625527380090,0.74029955,34035.0,34034.0,1.47716165]
[1625527384003,0.74029955,34035.0,34034.0,2.51658689]
[1625527385759,1.77371849,34035.0,34034.0,1.47716165]
[1625527386811,1.83071849,34035.0,34034.0,1.47716165]
[1625527389371,1.71471849,34035.0,34034.0,1.47716165]
[1625527391175,1.71471849,34035.0,34034.0,2.5164614]
[1625527391824,1.71471849,34035.0,34034.0,1.47716165]
[1625527392476,0.68129955,34035.0,34034.0,2.51640426]
[1625527394431,0.17247443,34035.0,34034.0,3.72891729]
[1625527394780,0.15167443,34035.0,34034.0,3.72891729]
[1625527394982,1.20628721,34039.0,34034.0,3.72891729]
[1625527394983,0.16472587,34036.0,34034.0,3.72891729]
[1625527395383,1.03446326,34040.0,34035.0,2.25495275]
[1625527395484,1.03446326,34040.0,34035.0,2.60796275]
[1625527395682,0.01566531,34039.0,34036.0,0.00348178]
[1625527395783,0.01566531,34039.0,34036.0,0.06248178]
[1625527395882,0.01566531,34039.0,34038.0,1.0392531]
[1625527395983,0.01566531,34039.0,34038.0,1.0982531]
[1625527396133,0.01566531,34039.0,34038.0,1.33882854]
[1625527396232,0.01566531,34039.0,34038.0,1.34231029]
[1625527397034,0.01566531,34039.0,34038.0,1.40131029]
[1625527397335,1.02742857,34040.0,34038.0,1.40131029]
[1625527397432,0.98502857,34040.0,34038.0,1.40131029]
[1625527397582,0.98162857,34040.0,34038.0,1.40131029]
[1625527397784,1.03554641,34043.0,34038.0,3.99925739]
[1625527397883,1.03554641,34043.0,34039.0,0.00348106]
[1625527397983,1.03554641,34043.0,34039.0,0.12148106]
[1625527398083,0.01561184,34042.0,34039.0,0.12148106]
[1625527398185,0.01561184,34042.0,34041.0,1.8666398]
[1625527398284,0.00861184,34042.0,34041.0,1.9256398]
[1625527398384,0.00861184,34042.0,34041.0,1.9846398]
[1625527398485,0.00861184,34042.0,34041.0,3.19694665]
[1625527398686,0.01558964,34047.0,34041.0,7.28842761]
[1625527398886,0.01558964,34047.0,34042.0,0.00348098]
[1625527398987,0.01558964,34047.0,34042.0,0.29051098]
[1625527399086,0.01558964,34047.0,34042.0,0.34951098]
[1625527399187,0.01558964,34047.0,34044.0,1.21223472]
[1625527399287,0.01558964,34047.0,34044.0,1.27123472]
[1625527399390,0.01558964,34047.0,34044.0,1.33023472]
[1625527399689,0.01558883,34048.0,34045.0,0.00348077]
[1625527399788,0.01558883,34048.0,34045.0,0.12148077]
[1625527400189,0.01558883,34048.0,34047.0,0.48115088]
[1625527400289,0.01558883,34048.0,34047.0,0.59915088]
[1625527400489,0.01558879,34049.0,34047.0,0.59915088]
[1625527400740,0.01558848,34048.0,34047.0,0.59915088]
[1625527400989,0.01558846,34049.0,34047.0,0.59915088]
[1625527401589,0.01558846,34049.0,34048.0,0.0874]
[1625527401689,0.01558846,34049.0,34048.0,4.443]
[1625527402194,0.01558846,34049.0,34048.0,4.68357544]
[1625527402293,0.01559538,34050.0,34048.0,4.68357544]
[1625527402593,1.22408248,34050.0,34048.0,4.68357544]
[1625527402944,0.01559538,34050.0,34048.0,4.68357544]
[1625527403144,1.20834547,34051.0,34048.0,4.68357544]
[1625527403599,0.01559534,34050.0,34048.0,4.68357544]
[1625527403849,1.28069809,34050.0,34048.0,4.68357544]
[1625527404100,1.26510275,34050.0,34048.0,4.68357544]
[1625527406304,0.057,34050.0,34048.0,4.68357544]
[1625527407555,1.2655347,34050.0,34048.0,4.68357544]
[1625527409359,0.057,34050.0,34048.0,4.68357544]
[1625527409457,1.20870556,34051.0,34048.0,4.68357544]
[1625527409959,1.20870556,34051.0,34050.0,0.08654372]
[1625527410060,1.20870556,34051.0,34050.0,0.30307372]
[1625527410159,1.20870556,34051.0,34050.0,0.36207372]
[1625527410360,1.20938601,34052.0,34050.0,0.27553]
[1625527410761,1.20938601,34052.0,34051.0,0.08654058]
[1625527410861,1.20938601,34052.0,34051.0,0.14554058]
[1625527411061,1.26638601,34052.0,34051.0,0.14554058]
[1625527412816,1.26638601,34052.0,34051.0,0.059]
[1625527416426,0.057,34052.0,34051.0,0.14550192]
[1625527416527,1.26604623,34053.0,34051.0,0.14550192]
[1625527418384,1.26604623,34053.0,34051.0,0.45043192]
[1625527418635,1.26604623,34053.0,34051.0,0.36393]
[1625527419388,1.26604623,34053.0,34051.0,0.45040324]
[1625527419389,0.057,34053.0,34051.0,0.45040324]
[1625527420141,1.26780852,34053.0,34051.0,0.45040324]
[1625527420292,1.26780852,34053.0,34052.0,0.24057544]
[1625527420392,1.26780852,34053.0,34052.0,0.29957544]
[1625527420490,0.057,34053.0,34052.0,0.29957544]
[1625527422543,0.057,34053.0,34052.0,0.30305581]
[1625527424097,1.26772424,34053.0,34052.0,0.30305581]
[1625527424950,1.26772424,34053.0,34052.0,0.24405581]
[1625527425051,1.32672424,34053.0,34052.0,0.24405581]
[1625527425502,6.22432424,34053.0,34052.0,0.24405581]
[1625527425602,6.49008424,34053.0,34052.0,0.24405581]
[1625527425959,7.87402397,34053.0,34052.0,0.24057544]
[1625527426253,7.88848882,34053.0,34052.0,0.24405634]
[1625527426353,8.12906426,34053.0,34052.0,0.24405634]
[1625527426755,8.11459941,34053.0,34052.0,0.24405634]
[1625527427006,9.67107414,34053.0,34052.0,0.24405634]
[1625527427910,10.70891392,34053.0,34052.0,0.24405634]
[1625527428312,9.15243919,34053.0,34052.0,0.24405634]
[1625527428911,9.16690405,34053.0,34052.0,0.24405634]
[1625527429463,9.15243919,34053.0,34052.0,0.24405634]
[1625527431872,4.25483919,34053.0,34052.0,0.24405634]
[1625527431973,3.98907919,34053.0,34052.0,0.24405634]
[1625527433274,4.00351725,34053.0,34052.0,0.24405634]
[1625527433376,4.28126725,34053.0,34052.0,0.24405634]
[1625527433474,5.83296053,34053.0,34052.0,0.24405634]
[1625527434077,5.89196053,34053.0,34052.0,0.24405634]
[1625527434278,5.83296053,34053.0,34052.0,0.24405634]
[1625527434378,5.89196053,34053.0,34052.0,0.24405634]
[1625527434481,5.83296053,34053.0,34052.0,0.24405634]
[1625527437637,5.83296053,34053.0,34052.0,3.54405634]
[1625527438389,5.89196053,34053.0,34052.0,3.54405634]
[1625527439792,6.58210821,34053.0,34052.0,3.54405634]
[1625527441245,6.52310821,34053.0,34052.0,3.54405634]
[1625527441344,6.58210821,34053.0,34052.0,3.54405634]
[1625527441445,6.58210821,34053.0,34052.0,3.3034809]
[1625527442046,6.58210821,34053.0,34052.0,1.3023809]
[1625527442396,6.58210821,34053.0,34043.0,0.08658474]
[1625527442599,0.48115088,34044.0,34042.0,0.08659098]
[1625527442698,0.29459,34043.0,34042.0,0.08659098]
[1625527442899,0.41259,34043.0,34042.0,0.08659098]
[1625527443099,5.02523775,34043.0,34042.0,0.09007268]
[1625527443199,9.8448772,34043.0,34042.0,0.0034817]
[1625527443602,9.8448772,34043.0,34040.0,0.0034818]
[1625527443703,9.8448772,34043.0,34038.0,0.0865969]
[1625527444104,4.8169935,34039.0,34037.0,0.08661412]
[1625527444205,0.057,34038.0,34036.0,9.883e-05]
[1625527444304,0.175,34038.0,34036.0,9.883e-05]
[1625527444403,0.1894609,34038.0,34036.0,9.883e-05]
[1625527444505,4.2956627,34037.0,34031.0,0.69298586]
[1625527444603,0.72172632,34032.0,34031.0,0.69298586]
[1625527444704,1.04901632,34032.0,34031.0,0.69298586]
[1625527444904,2.76714381,34032.0,34031.0,0.00348245]
[1625527445455,7.18124381,34032.0,34031.0,0.00348245]
[1625527446161,2.70814381,34032.0,34031.0,0.00348245]
[1625527446258,2.70814381,34032.0,34031.0,0.06248245]
[1625527446561,1.67730167,34032.0,34031.0,1.79440258]
[1625527446659,1.46601167,34032.0,34031.0,2.03497802]
[1625527446857,1.46601167,34032.0,34031.0,6.73557802]
[1625527447059,0.77872632,34032.0,34031.0,7.94787482]
[1625527447459,0.83772632,34032.0,34031.0,7.94787482]
[1625527448010,0.77872632,34032.0,34031.0,7.94787482]
[1625527448262,0.77872632,34032.0,34031.0,9.33331425]
[1625527448364,0.48115088,34032.0,34031.0,9.33331425]
[1625527448668,0.24057544,34032.0,34031.0,9.33331425]
[1625527448765,0.24057544,34032.0,34031.0,9.39231425]
[1625527448864,0.15577544,34032.0,34031.0,9.39231425]
[1625527449265,0.057,34036.0,34031.0,10.9507747]
[1625527449365,0.68835483,34039.0,34031.0,10.9507747]
[1625527449464,0.68835483,34039.0,34032.0,0.057]
[1625527449566,0.68835483,34039.0,34032.0,0.116]
[1625527449823,0.67785483,34039.0,34033.0,0.00348162]
[1625527449915,0.63355483,34039.0,34033.0,0.06248162]
[1625527450118,0.63355483,34039.0,34038.0,1.73206082]
[1625527450217,0.63025483,34039.0,34038.0,2.08412082]
[1625527450568,0.63025483,34039.0,34038.0,2.08760237]
[1625527450668,0.63025483,34039.0,34038.0,2.56875325]
[1625527451874,1.27268569,34041.0,34038.0,2.56875325]
[1625527451973,1.33168569,34041.0,34038.0,2.62575325]
[1625527452175,1.33168569,34041.0,34039.0,0.00348151]
[1625527452275,1.33168569,34041.0,34040.0,1.03939503]
[1625527452375,1.33168569,34041.0,34040.0,1.09839503]
[1625527452476,1.27268569,34041.0,34040.0,1.09839503]
[1625527452676,0.24057544,34041.0,34040.0,1.09839503]
[1625527452778,0.24057544,34041.0,34040.0,1.10187641]
[1625527453078,0.24057544,34041.0,34040.0,2.31445701]